bitfinex/quotes_ETHUSD_20250725
["timestamp","ask_amount","ask_price","bid_price","bid_amount"]
[1753441298330,1e-08,3723.2,3723.1,10.32916873]
[1753441298526,1.16637533,3723.8,3723.7,3.23550098]
[1753441298727,1.16637533,3723.8,3723.7,7.36250098]
[1753441298929,1.16637533,3723.8,3723.7,7.49690098]
[1753441299942,1.16637533,3723.8,3723.7,7.99650098]
[1753441300318,1.16637533,3723.8,3723.7,7.49690098]
[1753441302439,1.16637533,3723.8,3723.7,7.99650098]
[1753441302644,1.16637533,3723.8,3723.7,9.06470947]
[1753441303454,1.16637533,3723.8,3723.7,9.88520947]
[1753441305919,1.16637533,3723.8,3723.7,9.38560947]
[1753441306122,1.16637533,3723.8,3723.7,7.49690098]
[1753441311557,1.16637533,3723.8,3723.7,3.36990098]
[1753441311738,2.92497533,3723.8,3723.7,6.81150098]
[1753441314236,1.99907533,3723.8,3723.7,6.81150098]
[1753441314438,2.92497533,3723.8,3723.7,6.81150098]
[1753441315168,5.92497533,3723.8,3723.5,2.68561584]
[1753441315327,0.1344,3723.6,3723.1,0.1344]
[1753441315528,0.1344,3723.6,3723.4,2.68571735]
[1753441315529,1.7235,3723.5,3723.4,2.68571735]
[1753441316473,1.7235,3723.5,3723.3,6.81173558]
[1753441316759,1.0603,3723.4,3723.3,4.126]
[1753441316939,1.0603,3723.4,3723.3,6.81178948]
[1753441317258,1.0603,3723.4,3723.3,2.68578948]
[1753441317460,2.11417533,3723.8,3723.7,2.68550098]
[1753441317646,1.16637533,3723.8,3723.7,7.79300098]
[1753441317858,1.16637533,3723.8,3723.7,8.74630098]
[1753441318024,1.16637533,3723.8,3723.7,7.49590098]
[1753441320529,1.16637533,3723.8,3723.7,2.81990098]
[1753441320530,1.60447533,3723.8,3723.7,2.81990098]
[1753441320730,2.90567533,3723.8,3723.6,4.126]
[1753441320961,1.97977533,3723.8,3723.7,2.68550098]
[1753441321165,1.97977533,3723.8,3723.6,4.126]
[1753441321564,0.9259,3723.7,3723.6,4.126]
[1753441321861,0.9259,3723.7,3723.1,2.68589063]
[1753441321862,0.7515,3723.6,3723.1,2.68589063]
[1753441322160,0.9259,3723.5,3723.2,6.81185424]
[1753441322368,1.6774,3723.4,3723.2,6.81184694]
[1753441322571,0.7515,3723.4,3723.2,6.81185693]
[1753441322774,0.9259,3723.3,3723.2,2.68585693]
[1753441323276,0.7515,3723.4,3723.3,2.68578948]
[1753441323880,3.7987,3723.7,3723.3,4.126]
[1753441324178,0.7987,3723.7,3723.6,2.6855731]
[1753441324562,1.16637533,3723.8,3723.7,2.68550098]
[1753441324746,5.09227533,3723.8,3723.5,2.68560363]
[1753441325079,5.09227533,3723.8,3723.5,4.126]
[1753441325080,3.9259,3723.7,3723.5,4.126]
[1753441325280,0.7987,3723.6,3723.5,4.126]
[1753441325442,1.7246,3723.6,3723.3,6.81177481]
[1753441325648,0.9259,3723.5,3723.3,4.126]
[1753441325958,0.9259,3723.4,3723.3,6.81178948]
[1753441326648,0.7987,3723.6,3723.4,2.68567829]
[1753441327250,0.4509,3723.5,3723.3,6.81177516]
[1753441327451,0.7987,3723.6,3723.4,2.68571735]
[1753441327983,0.7987,3723.6,3723.5,2.68564522]
[1753441328603,1.2496,3723.6,3723.5,2.68564522]
[1753441328745,1.95447533,3723.8,3723.6,2.6855731]
[1753441329254,1.95447533,3723.8,3723.7,2.68550098]
[1753441329585,2.41577533,3723.8,3723.7,2.68550098]
[1753441329974,5.86667533,3723.8,3723.7,2.68550098]
[1753441330283,3.0,3723.7,3723.6,2.68553124]
[1753441330472,1.95447533,3723.8,3723.7,2.68550098]
[1753441330870,2.08887533,3723.8,3723.7,2.68550098]
[1753441331253,2.53977533,3723.8,3723.7,2.68550098]
[1753441331582,6.00107533,3723.8,3723.7,2.68550098]
[1753441331964,1.30277533,3723.8,3723.7,2.68550098]
[1753441332166,1.16837533,3723.8,3723.7,7.30140098]
[1753441333558,1.16837533,3723.8,3723.7,8.31890098]
[1753441338864,1.16837533,3723.8,3723.7,7.85140098]
[1753441339071,1e-08,3723.8,3723.7,9.15170098]
[1753441341283,0.002,3724.1,3724.0,2.68528464]
[1753441341601,0.002,3724.1,3724.0,6.81028464]
[1753441341805,0.002,3724.1,3724.0,7.43458464]
[1753441342201,0.002,3724.1,3724.0,7.90208464]
[1753441342373,0.002,3724.1,3724.0,8.10410355]
[1753441342874,0.002,3724.1,3724.0,9.41550355]
[1753441343621,1e-08,3724.1,3724.0,9.41550355]
[1753441343788,1e-08,3724.1,3724.0,10.89414087]
[1753441344102,1e-08,3724.1,3724.0,10.89314087]
[1753441347021,1e-08,3724.1,3724.0,13.89314087]
[1753441349580,1e-08,3724.1,3724.0,5.26174087]
[1753441349826,1e-08,3724.1,3724.0,9.38474087]
[1753441350034,1e-08,3724.1,3724.0,9.93474087]
[1753441350785,1e-08,3724.1,3724.0,10.42464087]
[1753441351086,1e-08,3724.1,3724.0,13.89214087]
[1753441352178,1e-08,3724.6,3724.5,3.99502415]
[1753441352483,0.002,3724.9,3724.8,3.9948079]
[1753441352484,1e-08,3724.9,3724.8,3.9948079]
[1753441352678,1e-08,3724.9,3724.8,8.14465497]
[1753441352885,1e-08,3724.9,3724.8,12.2096079]
[1753441353190,3.92749031,3727.1,3724.8,12.2096079]
[1753441353191,0.1344,3726.3,3726.2,2.68369921]
[1753441353509,0.9122,3726.3,3726.2,7.35669921]
[1753441353720,0.9122,3726.3,3726.2,7.49109921]
[1753441355784,0.7658,3726.2,3725.2,0.55]
[1753441356086,1.678,3726.2,3725.8,2.81838205]
[1753441356286,1.678,3726.2,3725.5,0.55]
[1753441356287,0.9379,3726.1,3725.9,4.123]
[1753441356515,0.9002,3726.2,3726.0,4.123]
[1753441357008,0.4716,3726.1,3726.0,4.123]
[1753441357182,0.9379,3726.1,3726.0,6.80684326]
[1753441357512,1.2301,3726.4,3726.3,2.68362719]
[1753441357719,1.2301,3726.4,3726.3,6.80562719]
[1753441358017,1.6964,3726.4,3726.3,6.80562719]
[1753441359119,0.9379,3726.4,3726.3,6.80562719]
[1753441359299,1.6966,3726.7,3726.6,2.68341115]
[1753441359620,0.7587,3726.7,3726.6,6.93981115]
[1753441360099,1.6966,3726.7,3726.6,6.93981115]
[1753441360430,1e-08,3726.8,3726.7,2.68333914]
[1753441361409,1e-08,3726.8,3726.7,3.23333914]
[1753441362031,0.47160001,3726.8,3726.7,3.23333914]
[1753441362334,0.93790001,3726.8,3726.7,3.23333914]
[1753441362695,1e-08,3726.8,3726.7,3.23333914]
[1753441363237,0.93790001,3726.8,3726.7,0.55]
[1753441363438,0.93790001,3726.8,3726.3,2.68356532]
[1753441363662,1.2751,3726.7,3726.5,2.68345774]
[1753441363934,0.8035,3726.7,3726.6,4.121]
[1753441364322,1.7414,3726.7,3726.6,4.121]
[1753441364636,0.9379,3726.7,3726.6,4.121]
[1753441365603,1.7323,3726.7,3726.6,4.121]
[1753441366123,1.7323,3726.7,3726.3,2.68360336]
[1753441366443,0.9379,3726.7,3726.5,2.68346848]
[1753441366733,0.13440001,3726.8,3726.6,4.121]
[1753441366919,2.68326715,3726.8,3726.7,4.121]
[1753441367121,0.79300001,3726.8,3726.7,4.121]
[1753441367321,0.92740001,3726.8,3726.6,4.121]
[1753441367536,0.92740001,3726.8,3726.4,4.121]
[1753441367537,3.47653364,3726.5,3726.4,4.121]
[1753441367727,3.61093364,3726.5,3726.2,4.121]
[1753441367926,0.1344,3726.3,3726.2,4.121]
[1753441368127,1.0723,3726.3,3726.2,4.121]
[1753441368535,0.793,3726.5,3726.2,4.121]
[1753441368736,0.793,3726.5,3726.2,6.80466278]
[1753441368737,1.8653,3726.5,3726.2,6.80466278]
[1753441369043,1.7309,3726.5,3726.2,4.2554]
[1753441369227,0.9379,3726.4,3726.2,4.2554]
[1753441369545,0.793,3726.5,3726.4,2.68355517]
[1753441369725,1e-08,3726.8,3726.4,2.68355517]
[1753441369726,0.79300001,3726.8,3726.4,2.68355517]
[1753441369928,0.9379,3726.7,3726.5,4.121]
[1753441370234,0.9379,3726.6,3726.5,4.121]
[1753441371042,1.7096,3726.6,3726.2,0.1344]
[1753441371245,1.0723,3726.5,3726.1,4.121]
[1753441371748,0.9379,3726.4,3726.1,4.121]
[1753441371920,0.1344,3726.5,3726.1,4.121]
[1753441372121,0.9379,3726.4,3726.1,6.80470287]
[1753441372846,0.9379,3726.3,3726.1,4.121]
[1753441373148,2.81788655,3726.5,3726.1,4.121]
[1753441373448,0.9379,3726.2,3726.1,4.121]
[1753441373947,0.4716,3726.2,3726.1,4.121]
[1753441374122,0.606,3726.5,3726.1,6.80475124]
[1753441374322,1.0723,3726.5,3726.1,6.80475124]
[1753441374524,0.7717,3726.6,3726.1,4.121]
[1753441374724,0.7717,3726.6,3726.2,0.6286]
[1753441374951,0.1364,3726.7,3726.4,2.68350161]
[1753441375153,0.002,3726.7,3726.5,4.12]
[1753441375352,0.002,3726.7,3726.6,2.68341115]
[1753441375658,0.002,3726.7,3726.5,6.80345974]
[1753441375948,0.002,3726.7,3726.6,2.68341115]
[1753441376537,0.002,3726.7,3726.5,6.80345417]
[1753441376852,0.002,3726.7,3726.6,2.68341115]
[1753441377218,0.002,3726.7,3726.5,7.2976544]
[1753441377423,0.002,3726.7,3726.5,4.6142]
[1753441377622,0.002,3726.7,3726.6,3.17761115]
[1753441377859,0.002,3726.7,3726.6,3.31201115]
[1753441378018,0.002,3726.7,3726.6,3.86201115]
[1753441378219,0.002,3726.7,3726.6,3.79541115]
[1753441378453,0.002,3726.7,3726.6,4.28961115]
[1753441378755,0.002,3726.7,3726.6,5.50540577]
[1753441380058,0.002,3726.7,3726.6,5.47857166]
[1753441380427,0.002,3726.7,3726.6,5.05097166]
[1753441380746,0.002,3726.7,3726.6,3.36781115]
[1753441381633,0.002,3726.7,3726.6,0.1344]
[1753441381818,0.002,3726.7,3726.6,6.93781115]
[1753441382521,0.002,3726.7,3726.6,0.1344]
[1753441382723,1.7546,3726.7,3726.6,4.12]
[1753441382941,4.43797012,3726.7,3726.3,4.12]
[1753441383222,3.60555517,3726.4,3726.3,4.12]
[1753441383623,2.68377057,3726.2,3726.0,4.12]
[1753441383872,2.68377057,3726.2,3726.1,4.12]
[1753441384352,0.1344,3726.2,3726.1,4.12]
[1753441384525,0.1344,3726.3,3726.1,4.12]
[1753441384725,0.1344,3726.3,3725.9,2.68391206]
[1753441384919,0.1344,3726.3,3726.0,4.119]
[1753441385356,1.0723,3726.3,3726.0,4.119]
[1753441385534,0.4716,3726.2,3726.0,4.119]
[1753441385722,0.1344,3726.3,3726.1,2.68376517]
[1753441386331,0.1344,3726.3,3726.2,2.68369921]
[1753441386524,0.4683,3726.7,3726.3,2.68361687]
[1753441386525,0.7632,3726.6,3726.3,2.68361687]
[1753441386747,0.1364,3726.7,3726.4,6.80353729]
[1753441386965,0.002,3726.7,3726.4,4.12]
[1753441387125,0.002,3726.7,3726.6,3.23341115]
[1753441387325,0.002,3726.7,3726.6,3.36781115]
[1753441388966,0.002,3726.7,3726.6,6.93781115]
[1753441389257,0.002,3726.7,3726.6,7.48781115]
[1753441389449,0.002,3726.7,3726.6,4.8044]
[1753441389654,0.002,3726.7,3726.6,7.48781115]
[1753441390468,0.002,3726.7,3726.6,4.2544]
[1753441390764,0.9083,3726.7,3726.5,0.1344]
[1753441390936,0.4564,3726.7,3726.6,4.12]
[1753441391261,0.4564,3726.7,3725.8,2.68394123]
[1753441391262,1.2498,3726.7,3725.8,2.68394123]
[1753441391466,1.2498,3726.7,3726.2,2.81803184]
[1753441391673,1.3842,3726.7,3726.3,4.119]
[1753441391840,1.8361,3726.7,3726.3,4.119]
[1753441392040,1.8361,3726.7,3726.3,6.80262713]
[1753441392235,1.8361,3726.7,3726.4,2.68354951]
[1753441392437,1.8361,3726.7,3726.3,6.80258205]
[1753441393081,0.9063,3726.6,3726.3,6.80258205]
[1753441393233,0.9063,3726.5,3726.3,4.119]
[1753441393438,0.9063,3726.4,3726.3,4.119]
[1753441394680,3.58986108,3726.4,3725.5,0.20203429]
[1753441394890,3.58986108,3726.4,3725.8,0.1344]
[1753441394891,0.4519,3726.3,3725.8,0.1344]
[1753441395176,0.4519,3726.3,3725.8,2.81836923]
[1753441395177,0.9063,3726.2,3725.8,2.81836923]
[1753441395342,0.9063,3726.2,3725.9,4.119]
[1753441395685,0.9063,3726.1,3725.9,4.119]
[1753441396490,0.9063,3726.1,3726.0,2.68384326]
[1753441396702,0.7954,3726.7,3726.2,0.55]
[1753441396988,0.002,3726.7,3726.5,2.68341321]
[1753441397192,0.002,3726.7,3726.6,6.80241115]
[1753441397472,0.002,3726.7,3726.6,7.80301115]
[1753441397681,0.002,3726.7,3726.6,8.23811115]
[1753441397872,0.002,3726.7,3726.6,9.33026359]
[1753441398066,0.002,3726.7,3726.6,10.09826359]
[1753441398264,0.002,3726.7,3726.6,9.66316359]
[1753441398462,0.002,3726.7,3726.6,10.09826359]
[1753441400280,0.002,3726.7,3726.6,9.66316359]
[1753441402976,0.002,3726.7,3726.6,8.57101115]
[1753441403178,0.002,3726.7,3726.6,7.35241115]
[1753441404563,0.002,3726.7,3726.6,7.80301115]
[1753441405851,0.002,3726.7,3726.6,8.23811115]
[1753441406301,0.002,3726.7,3726.6,7.80301115]
[1753441406467,0.002,3726.7,3726.6,9.28675359]
[1753441406799,0.002,3726.7,3726.6,9.42115359]
[1753441407368,0.002,3726.7,3726.6,8.98605359]
[1753441408071,0.002,3726.7,3726.6,9.42115359]
[1753441408400,0.002,3726.7,3726.6,8.98605359]
[1753441408606,1e-08,3726.7,3726.6,9.42115359]
[1753441408803,1e-08,3726.7,3726.6,10.23485359]
[1753441408953,1e-08,3726.7,3726.6,9.79975359]
[1753441411209,1e-08,3726.7,3726.6,5.23015359]
[1753441411392,1e-08,3726.7,3726.6,7.48581115]
[1753441413089,1e-08,3726.7,3726.6,7.93641115]
[1753441413272,1e-08,3726.7,3726.6,3.81841115]
[1753441413471,1e-08,3726.7,3726.6,7.93641115]
[1753441415095,1.18740002,3727.3,3727.1,2.68302871]
[1753441415394,1.18740002,3727.3,3727.2,4.118]
[1753441415589,1.18740002,3727.3,3727.1,2.68302871]
[1753441415791,0.7855,3727.3,3727.2,4.118]
[1753441416096,3.46842501,3727.3,3726.6,2.6833649]
[1753441416262,0.1344,3727.2,3726.7,6.93573799]
[1753441416595,0.1344,3727.2,3726.7,4.2524]
[1753441416790,0.1344,3726.9,3726.7,4.118]
[1753441416975,0.7749,3726.8,3726.7,4.118]
[1753441417290,0.7749,3726.8,3726.4,0.1344]
[1753441417496,0.7749,3726.8,3726.5,4.118]
[1753441417695,2.68334758,3726.7,3726.3,0.1344]
[1753441417997,2.8176199,3726.9,3726.0,0.1344]
[1753441417998,0.7749,3726.3,3726.0,0.1344]
[1753441418196,0.8164,3725.7,3725.6,4.118]
[1753441418892,3.50045937,3725.7,3725.6,4.118]
[1753441419105,0.8164,3725.7,3725.6,4.118]
[1753441419265,0.8164,3725.7,3725.3,0.1354]
[1753441419461,0.8164,3725.7,3725.4,4.118]
[1753441420000,0.8164,3725.7,3725.4,6.80225184]
[1753441421093,0.8164,3725.7,3725.5,2.68419346]
[1753441421401,0.8164,3725.7,3725.6,6.80213141]
[1753441421785,0.8164,3725.7,3725.6,4.118]
[1753441422167,0.8164,3725.7,3725.6,6.80213141]
[1753441423722,0.7523,3726.4,3725.6,4.118]
[1753441423872,0.1344,3726.1,3726.0,2.68382525]
[1753441424485,0.1344,3726.1,3726.0,2.68384326]
[1753441425605,0.9579,3726.6,3726.4,2.6835126]
[1753441426173,0.1344,3726.6,3726.5,2.68348316]
[1753441426473,0.1344,3726.8,3726.6,2.68338279]
[1753441426668,0.1344,3726.8,3726.4,6.80150214]
[1753441426903,0.1344,3726.8,3726.5,2.68347273]
[1753441427075,0.1344,3726.8,3726.4,4.118]
[1753441427272,0.1344,3726.8,3726.5,2.68343099]
[1753441427601,0.1344,3726.8,3726.4,6.80150415]
[1753441427907,0.0844,3726.8,3726.5,2.68348154]
[1753441428899,0.0844,3726.8,3726.4,4.118]
[1753441429396,0.0844,3726.8,3726.5,2.68343345]
[1753441429905,0.0844,3726.8,3726.4,6.80154732]
[1753441431218,0.0844,3726.8,3726.4,4.118]
[1753441431505,0.0844,3726.8,3726.4,6.80155304]
[1753441431673,0.0844,3726.8,3726.4,2.68355304]
[1753441431870,0.0844,3726.8,3726.2,4.118]
[1753441432075,0.0844,3726.8,3726.6,2.68336614]
[1753441432288,0.0844,3726.8,3726.7,2.68333914]
[1753441432611,0.0844,3726.8,3726.5,2.68341658]
[1753441432786,0.0844,3726.8,3726.4,4.118]
[1753441432990,0.9532,3726.9,3726.7,2.68328288]
[1753441433191,0.9532,3726.9,3726.8,2.68326714]
[1753441433192,0.1344,3726.9,3726.8,2.68326714]
[1753441433386,0.1344,3727.2,3726.7,4.2524]
[1753441433729,0.1344,3727.2,3726.9,2.68318693]
[1753441434004,0.1344,3727.2,3727.1,2.68305116]
[1753441434313,0.1344,3727.2,3727.0,2.68308456]
[1753441434510,0.1344,3727.2,3726.9,6.80116696]
[1753441434878,0.1344,3727.2,3726.1,0.7545]
[1753441435099,0.1344,3726.9,3726.4,0.1344]
[1753441435299,0.7869,3726.8,3726.4,0.1344]
[1753441435595,0.7869,3726.8,3726.4,0.001]
[1753441436425,0.7869,3726.8,3726.4,2.68454495]
[1753441437019,0.7869,3726.8,3726.4,0.001]
[1753441437198,3.47022318,3726.8,3726.4,0.001]
[1753441437404,0.7869,3726.8,3726.4,0.001]
[1753441437599,0.7869,3726.8,3726.4,2.68455452]
[1753441438218,0.7869,3726.8,3726.4,0.001]
[1753441439997,0.7869,3726.8,3726.4,2.6845494]
[1753441440191,0.7869,3726.8,3726.4,0.001]
[1753441440619,0.7869,3726.8,3726.5,2.68348316]
[1753441441126,0.7869,3726.8,3726.4,2.68452482]
[1753441441636,0.7869,3726.8,3726.4,0.001]
[1753441442238,0.7869,3726.8,3726.4,2.68454375]
[1753441442404,0.7869,3726.8,3726.5,2.68345699]
[1753441442616,0.7696,3727.5,3726.9,2.68315115]
[1753441442826,0.1344,3727.2,3726.9,2.68315115]
[1753441443029,0.1344,3727.2,3726.7,3.36771211]
[1753441443228,0.8067,3727.1,3726.7,0.6844]
[1753441443612,0.8067,3727.1,3726.7,3.36768325]
[1753441443944,0.8067,3727.1,3726.8,2.68325581]
[1753441444142,0.8067,3727.1,3726.7,0.1344]
[1753441444333,0.1344,3726.8,3726.4,0.001]
[1753441444827,0.1344,3726.8,3726.5,2.68343648]
[1753441445226,0.1344,3726.8,3726.4,2.6845416]
[1753441445449,0.1344,3726.8,3726.5,2.68348316]
[1753441445814,0.1344,3726.8,3726.4,2.68455375]
[1753441446011,0.1344,3726.8,3726.5,2.68344073]
[1753441446222,0.1344,3726.8,3726.4,0.001]
[1753441446537,0.1344,3726.8,3726.6,2.6833639]
[1753441446839,0.1344,3726.8,3726.4,0.001]
[1753441447040,0.1344,3726.5,3726.4,0.001]
[1753441447412,10.75078316,3726.5,3726.4,0.001]
[1753441453414,6.63378316,3726.5,3726.4,0.001]
[1753441453619,10.75078316,3726.5,3726.4,0.001]
[1753441454215,6.63378316,3726.5,3726.4,0.001]
[1753441454651,10.75078316,3726.5,3726.4,0.001]
[1753441456735,6.63378316,3726.5,3726.4,0.001]
[1753441456929,0.9503,3726.5,3726.4,0.001]
[1753441457246,4.2514,3726.5,3726.4,0.001]
[1753441457443,7.2514,3726.5,3726.4,0.001]
[1753441458545,0.1344,3726.5,3726.4,0.001]
[1753441458761,4.2514,3726.5,3726.4,0.001]
[1753441458936,0.1344,3726.5,3726.4,0.001]
[1753441459322,4.2514,3726.7,3726.5,2.68348263]
[1753441459523,4.2514,3726.7,3726.4,2.68453432]
[1753441460361,0.1344,3726.7,3726.4,0.001]
[1753441461036,0.1344,3726.7,3726.4,2.68454641]
[1753441461215,0.1344,3726.7,3726.4,0.001]
[1753441462668,0.1344,3726.7,3726.4,2.68450905]
[1753441462871,0.1344,3726.7,3726.4,2.68453927]
[1753441463239,0.1344,3726.7,3726.4,0.001]
[1753441463563,0.1344,3726.7,3726.4,2.68454793]
[1753441464229,0.1344,3726.7,3726.4,0.001]
[1753441465459,2.81778875,3726.7,3726.4,0.001]
[1753441465659,0.1344,3726.7,3726.4,0.001]
[1753441465868,2.68345509,3726.6,3726.4,0.001]
[1753441466026,2.68342411,3726.6,3726.4,0.001]
[1753441466225,0.1344,3726.5,3726.4,0.001]
[1753441466638,2.81788316,3726.5,3726.4,0.001]
[1753441466825,6.93388316,3726.5,3726.4,0.001]
[1753441467426,4.2504,3726.5,3726.4,0.001]
[1753441468257,4.116,3726.5,3726.4,0.001]
[1753441472574,4.2504,3726.5,3726.4,0.001]
[1753441473446,4.2504,3726.5,3726.1,2.52874594]
[1753441473646,4.2504,3726.5,3726.0,0.1344]
[1753441473847,4.2504,3726.5,3726.0,2.81817252]
[1753441474061,4.2504,3726.5,3726.1,2.68377123]
[1753441475454,4.2504,3726.5,3726.0,0.1344]
[1753441475657,4.2504,3726.5,3726.1,2.68371865]
[1753441476059,4.2504,3726.5,3726.2,2.6836417]
[1753441476483,4.2504,3726.5,3726.3,2.68359567]
[1753441477173,0.1344,3726.5,3726.4,2.68355517]
[1753441477347,0.002,3726.9,3726.5,2.68342562]
[1753441477348,0.1344,3726.8,3726.5,2.68342562]
[1753441477552,0.1344,3726.8,3726.2,0.1344]
[1753441477880,0.002,3726.9,3726.2,0.1344]
[1753441477881,4.117,3726.9,3726.8,2.68326714]
[1753441478286,0.002,3726.9,3726.8,2.68326714]
[1753441478812,0.1344,3727.2,3727.0,2.68308099]
[1753441478813,4.115,3727.1,3727.0,2.68308099]
[1753441478966,7.115,3727.1,3727.0,2.68308099]
[1753441479546,3.0,3727.1,3726.8,2.68321982]
[1753441479987,3.0,3727.1,3726.7,3.23331288]
[1753441480216,3.0,3727.1,3726.4,0.7664]
[1753441480217,3.8302,3727.1,3726.4,0.7664]
[1753441480362,0.1344,3726.9,3726.5,2.68343643]
[1753441480910,0.1344,3726.9,3726.3,0.1344]
[1753441481256,0.1344,3726.9,3726.6,2.68336148]
[1753441481475,0.1344,3726.9,3726.3,2.68362719]
[1753441481681,0.1344,3726.9,3726.5,2.68343081]
[1753441481863,0.002,3726.8,3726.6,2.68340012]
[1753441482089,0.002,3726.8,3726.7,2.68333914]
[1753441482804,0.002,3726.8,3726.7,3.84770927]
[1753441483106,0.002,3726.8,3726.7,4.78584266]
[1753441483606,0.002,3727.6,3727.5,2.68276324]
[1753441483963,0.002,3727.6,3727.5,3.23276324]
[1753441484162,0.002,3727.6,3727.5,3.25959087]
[1753441484464,0.002,3727.6,3727.5,4.59792778]
[1753441484664,0.002,3727.6,3727.5,4.62475541]
[1753441485190,0.002,3727.6,3727.5,4.59792778]
[1753441488823,0.002,3727.6,3727.5,8.71192778]
[1753441491303,0.002,3727.6,3727.5,8.16192778]
[1753441491512,0.002,3727.6,3727.5,8.91771517]
[1753441492087,0.002,3727.6,3727.5,9.73291517]
[1753441494520,0.1344,3728.9,3728.8,2.68182793]
[1753441494726,0.002,3729.1,3728.8,4.113]
[1753441494886,0.002,3729.1,3728.8,6.79478179]
[1753441495095,0.002,3729.1,3728.9,2.68174886]
[1753441495297,0.002,3729.1,3729.0,4.112]
[1753441495500,0.7941,3729.1,3729.0,4.112]
[1753441495816,3.47575694,3729.1,3729.0,4.112]
[1753441496014,3.61015694,3729.1,3729.0,4.112]
[1753441496229,2.68168733,3729.0,3728.1,2.68227223]
[1753441496397,0.1344,3728.9,3728.4,0.1344]
[1753441496726,0.002,3729.1,3729.0,2.68168409]
[1753441497026,0.002,3729.1,3729.0,6.79368409]
[1753441497601,0.002,3729.1,3729.0,4.112]
[1753441497800,0.002,3729.1,3729.0,6.79368409]
[1753441501106,0.002,3729.1,3729.0,2.68168409]
[1753441501393,0.002,3729.1,3729.0,6.79268409]
[1753441502300,0.002,3729.1,3729.0,4.111]
[1753441502606,0.002,3729.1,3729.0,6.79268409]
[1753441502808,0.002,3729.1,3729.0,4.111]
[1753441503213,0.002,3729.1,3729.0,7.62160093]
[1753441503399,0.002,3729.1,3729.0,7.59478409]
[1753441504837,0.002,3729.1,3729.0,3.48378409]
[1753441504998,0.002,3729.1,3729.0,8.17160093]
[1753441505333,0.002,3729.1,3729.0,9.2435609]
[1753441507324,0.002,3729.1,3729.0,5.1325609]
[1753441507527,0.002,3729.1,3729.0,9.2425609]
[1753441507921,0.002,3729.1,3729.0,8.4404609]
[1753441510737,0.002,3729.1,3729.0,2.68168409]
[1753441511040,0.002,3729.1,3729.0,6.79168409]
[1753441512027,0.002,3729.1,3728.9,0.1344]
[1753441512350,0.002,3729.1,3729.0,6.79168409]
[1753441516043,0.002,3729.1,3729.0,2.68168409]
[1753441516221,0.002,3729.1,3729.0,6.79168409]
[1753441516426,0.002,3729.1,3729.0,2.68168409]
[1753441516629,0.002,3729.1,3728.9,0.1344]
[1753441516944,0.002,3729.1,3729.0,4.109]
[1753441517149,0.002,3729.1,3728.9,0.1344]
[1753441517315,0.002,3729.1,3729.0,4.109]
[1753441519650,0.002,3729.1,3727.5,1.57095193]
[1753441519950,2.68183079,3728.8,3728.4,0.1344]
[1753441520136,2.68183079,3728.8,3728.5,4.109]
[1753441520523,2.68189785,3728.8,3727.7,2.6826193]
[1753441520843,0.7619,3728.3,3728.0,0.1344]
[1753441521046,0.7619,3728.3,3728.1,4.109]
[1753441521910,0.7619,3728.3,3728.2,4.109]
[1753441523051,0.7619,3728.3,3728.0,0.1344]
[1753441523345,0.7619,3728.3,3728.1,4.109]
[1753441524146,3.44411047,3728.3,3728.0,0.1344]
[1753441524337,3.44411047,3728.3,3727.4,3.46722216]
[1753441524338,0.7619,3728.3,3728.1,4.109]
[1753441524657,0.7619,3728.3,3728.2,4.109]
[1753441524814,0.7619,3728.3,3727.8,2.81692702]
[1753441525153,0.7619,3728.3,3728.1,0.001]
[1753441525363,0.7619,3728.3,3728.2,4.109]
[1753441525659,0.7619,3728.3,3728.1,0.001]
[1753441525965,0.7619,3728.3,3728.2,4.109]
[1753441526331,3.44408831,3728.3,3728.2,4.109]
[1753441526860,3.44408759,3728.3,3728.1,4.11]
[1753441527032,0.7619,3728.3,3728.1,4.11]
[1753441527433,0.8217,3728.6,3728.1,4.11]
[1753441527660,0.1344,3728.8,3728.1,5.08602331]
[1753441527962,0.1344,3728.8,3728.4,2.68208049]
[1753441528157,0.1344,3728.8,3728.5,4.109]
[1753441529040,2.81625153,3728.8,3728.5,4.109]
[1753441529246,0.1344,3728.8,3728.5,4.109]
[1753441529962,2.81627561,3728.8,3728.5,4.109]
[1753441530166,0.1344,3728.8,3728.5,4.109]
[1753441531472,0.1344,3728.8,3728.5,6.79099813]
[1753441531654,0.1344,3728.8,3728.5,4.109]
[1753441531974,0.1344,3728.8,3728.5,6.79102082]
[1753441532357,0.1344,3728.8,3728.5,4.109]
[1753441532869,3.46860786,3729.0,3728.5,6.79103541]
[1753441532870,0.7869,3729.0,3728.5,6.79103541]
[1753441533061,0.1344,3728.9,3728.5,6.79103541]
[1753441533462,0.002,3729.1,3728.7,2.68189985]
[1753441533666,0.002,3729.1,3729.0,2.68168409]
[1753441533980,0.002,3729.1,3729.0,0.1344]
[1753441534537,0.002,3729.1,3729.0,4.2434]
[1753441535265,0.002,3729.1,3729.0,4.109]
[1753441535466,0.002,3729.1,3728.2,0.8176]
[1753441535467,2.68361218,3729.1,3728.2,0.8176]
[1753441535637,2.68361218,3729.1,3728.6,0.1344]
[1753441535638,0.1364,3729.1,3728.6,0.1344]
[1753441535832,2.8180411,3729.1,3728.7,4.109]
[1753441536139,2.81803999,3729.1,3728.7,4.109]
[1753441536344,0.1364,3729.1,3728.7,4.109]
[1753441536548,2.8180543,3729.1,3728.7,4.109]
[1753441536778,0.002,3729.1,3728.7,4.109]
[1753441536939,0.1344,3728.9,3728.7,4.109]
[1753441537257,0.1344,3728.9,3728.4,0.1344]
[1753441537454,2.68187371,3728.8,3728.5,4.109]